bitfinex-derivatives/quotes_BTCF0:USTF0_20250514
["timestamp","ask_amount","ask_price","bid_price","bid_amount"]
[1747264672740,0.12923409,103490.0,103480.0,2.56488402]
[1747264672938,0.16183409,103490.0,103480.0,2.56588402]
[1747264673445,0.16183409,103490.0,103480.0,2.79884402]
[1747264673641,0.16183409,103490.0,103480.0,1.16603877]
[1747264673945,0.16183409,103490.0,103480.0,1.29884402]
[1747264674141,0.16183409,103490.0,103480.0,2.79884402]
[1747264674849,0.16183409,103490.0,103480.0,2.79684402]
[1747264675041,0.16183409,103490.0,103480.0,2.79784402]
[1747264675346,0.16183409,103490.0,103480.0,3.15864402]
[1747264675540,0.16183409,103490.0,103480.0,3.15764402]
[1747264676746,0.09793409,103490.0,103480.0,3.15764402]
[1747264677236,0.07220739,103490.0,103480.0,3.15764402]
[1747264678749,0.18692418,103500.0,103490.0,0.193207]
[1747264678944,0.18692418,103500.0,103490.0,0.83171225]
[1747264679350,0.18692418,103500.0,103490.0,1.09034461]
[1747264679551,0.15572418,103500.0,103490.0,1.22314986]
[1747264679738,0.85616811,103510.0,103500.0,0.1931884]
[1747264680049,0.002,103520.0,103500.0,0.9709705]
[1747264680240,0.002,103520.0,103510.0,0.78027495]
[1747264680441,0.002,103520.0,103510.0,0.83027495]
[1747264680743,0.17058069,103530.0,103520.0,0.193151]
[1747264681047,0.17058069,103530.0,103520.0,0.79835625]
[1747264681247,0.17058069,103530.0,103520.0,0.74835625]
[1747264681437,0.17058069,103530.0,103520.0,0.8949606]
[1747264681636,0.17058069,103530.0,103520.0,0.71215535]
[1747264681838,0.36371309,103530.0,103520.0,0.71215535]
[1747264682038,0.48058069,103530.0,103520.0,0.7833606]
[1747264682240,0.17058069,103530.0,103520.0,0.89455535]
[1747264682446,0.17058069,103530.0,103520.0,1.0578606]
[1747264682834,0.20358069,103530.0,103520.0,1.0578606]
[1747264683040,0.033,103530.0,103520.0,1.0578606]
[1747264683350,0.033,103530.0,103520.0,0.92505535]
[1747264683654,0.033,103530.0,103520.0,1.0578606]
[1747264685244,0.0645,103530.0,103520.0,1.0578606]
[1747264685734,0.0645,103530.0,103520.0,1.06348131]
[1747264686448,0.2576324,103530.0,103520.0,0.93067606]
[1747264686748,0.0645,103530.0,103520.0,1.01348131]
[1747264686954,0.0645,103530.0,103520.0,1.06348131]
[1747264690055,0.6814,103540.0,103530.0,0.1931324]
[1747264690352,0.71040569,103560.0,103530.0,0.1931324]
[1747264690353,0.0652,103550.0,103540.0,0.1931137]
[1747264690553,1.40797579,103560.0,103550.0,0.1930951]
[1747264690767,1.53505579,103560.0,103550.0,0.75090035]
[1747264690960,1.53505579,103560.0,103550.0,0.80090035]
[1747264691257,1.53505579,103560.0,103550.0,0.89747671]
[1747264691454,1.30213579,103560.0,103550.0,0.89747671]
[1747264692061,1.30813579,103560.0,103550.0,0.89747671]
[1747264692354,1.30813579,103560.0,103550.0,0.84747671]
[1747264693162,1.33933579,103560.0,103550.0,0.84747671]
[1747264693358,1.33933579,103560.0,103550.0,1.00947671]
[1747264693745,1.33933579,103560.0,103550.0,0.84447146]
[1747264693947,1.33933579,103560.0,103550.0,0.48367146]
[1747264694154,1.33933579,103560.0,103550.0,0.32167146]
[1747264695259,1.70013579,103560.0,103550.0,0.32167146]
[1747264695457,1.27905484,103560.0,103530.0,0.6822833]
[1747264695658,0.1931137,103540.0,103530.0,0.3211833]
[1747264695851,0.2331137,103540.0,103530.0,0.36946814]
[1747264696158,0.6673137,103540.0,103530.0,0.36946814]
[1747264697050,0.6673137,103540.0,103530.0,0.50227339]
[1747264697359,0.6673137,103540.0,103530.0,0.86307339]
[1747264698057,0.2973137,103540.0,103530.0,0.86307339]
[1747264698453,0.2873137,103540.0,103530.0,0.91307339]
[1747264698666,0.2873137,103540.0,103530.0,0.94457339]
[1747264699364,0.0652,103540.0,103530.0,1.07737864]
[1747264699563,0.0672,103540.0,103530.0,1.07737864]
[1747264699755,0.2603137,103540.0,103530.0,1.07737864]
[1747264700152,0.2603137,103540.0,103530.0,0.81176814]
[1747264700463,0.2603137,103540.0,103530.0,0.94457339]
[1747264702069,0.2603137,103540.0,103530.0,0.9501941]
[1747264702366,0.2603137,103540.0,103530.0,1.1121941]
[1747264703154,0.2603137,103540.0,103530.0,1.10657339]
[1747264703667,0.0672,103540.0,103530.0,1.10657339]
[1747264703866,0.004,103540.0,103530.0,1.23937864]
[1747264704053,0.004,103540.0,103530.0,1.24499935]
[1747264704969,0.1971137,103540.0,103530.0,1.1121941]
[1747264705164,0.5403137,103540.0,103530.0,1.10657339]
[1747264705361,0.2603137,103540.0,103530.0,1.05657339]
[1747264706649,0.2603137,103540.0,103530.0,0.92376814]
[1747264706861,0.2603137,103540.0,103530.0,1.05657339]
[1747264707061,0.2603137,103540.0,103530.0,0.94457339]
[1747264707762,0.2603137,103540.0,103530.0,0.76176814]
[1747264707968,0.6103137,103540.0,103530.0,0.32118664]
[1747264708266,0.61593441,103540.0,103530.0,0.45399189]
[1747264708462,0.29593441,103540.0,103530.0,0.48679189]
[1747264709166,0.2903137,103540.0,103530.0,0.12806704]
[1747264709366,0.3803137,103540.0,103530.0,0.12806704]
[1747264709566,0.3803137,103540.0,103520.0,0.84531805]
[1747264709567,0.1931324,103530.0,103520.0,0.0302]
[1747264709757,0.5075324,103530.0,103520.0,0.255851]
[1747264709954,0.5075324,103530.0,103520.0,0.84604194]
[1747264710563,0.2875324,103530.0,103520.0,0.84604194]
[1747264711069,0.2875324,103530.0,103520.0,0.68303669]
[1747264711269,0.193151,103520.0,103510.0,0.55589839]
[1747264711468,0.288251,103520.0,103510.0,0.63609839]
[1747264711766,0.4151,103520.0,103510.0,0.86549866]
[1747264711973,0.4582524,103530.0,103520.0,0.193151]
[1747264712173,0.8623524,103530.0,103520.0,0.74745625]
[1747264712377,0.4361,103530.0,103520.0,0.82945625]
[1747264712571,0.6292324,103530.0,103520.0,0.9260606]
[1747264713282,0.6292324,103530.0,103520.0,1.0880606]
[1747264713464,0.6312324,103530.0,103520.0,0.84275535]
[1747264713665,0.6312324,103530.0,103520.0,0.9755606]
[1747264713875,0.6312324,103530.0,103520.0,1.0060606]
[1747264714265,0.6312324,103530.0,103520.0,0.8440606]
[1747264714566,0.6332324,103530.0,103520.0,0.71125535]
[1747264714869,0.6332324,103530.0,103520.0,0.8440606]
[1747264715273,0.6312324,103530.0,103520.0,0.8440606]
[1747264715471,0.6332324,103530.0,103520.0,0.71125535]
[1747264717878,0.3032324,103530.0,103520.0,0.71125535]
[1747264718063,0.3032324,103530.0,103520.0,0.8440606]
[1747264718671,0.1101,103530.0,103520.0,0.8440606]
[1747264718969,0.004,103530.0,103520.0,0.8940606]
[1747264719170,0.16672454,103530.0,103520.0,0.8940606]
[1747264719967,0.16672454,103530.0,103520.0,2.3940606]
[1747264720166,0.16672454,103530.0,103520.0,2.5560606]
[1747264720370,0.35985694,103530.0,103520.0,2.42325535]
[1747264720674,0.35785694,103530.0,103520.0,1.0560606]
[1747264720873,0.58825694,103530.0,103520.0,1.0060606]
[1747264721175,0.62045694,103530.0,103520.0,1.0060606]
[1747264721362,0.62045694,103530.0,103520.0,1.01168131]
[1747264722475,0.62245694,103530.0,103520.0,0.87887606]
[1747264723375,0.62445694,103530.0,103520.0,0.48757606]
[1747264723572,0.85737694,103530.0,103520.0,0.48757606]
[1747264724473,0.62445694,103530.0,103520.0,0.62038131]
[1747264724677,0.85713694,103530.0,103520.0,0.65258131]
[1747264724874,0.66400454,103530.0,103520.0,0.65258131]
[1747264725083,0.62445694,103530.0,103520.0,1.06338131]
[1747264725376,0.36672454,103530.0,103520.0,1.06338131]
[1747264726869,0.55985694,103530.0,103520.0,0.93057606]
[1747264727070,0.55985694,103530.0,103520.0,1.06338131]
[1747264727269,0.55985694,103530.0,103520.0,0.93057606]
[1747264727471,0.49985694,103530.0,103520.0,1.01338131]
[1747264727673,0.59435694,103530.0,103520.0,1.01338131]
[1747264729587,0.59435694,103530.0,103520.0,0.88057606]
[1747264729775,0.59435694,103530.0,103520.0,1.01338131]
[1747264730381,0.77435694,103530.0,103520.0,1.01338131]
[1747264730774,0.45435694,103530.0,103520.0,1.01338131]
[1747264730976,0.58435694,103530.0,103520.0,1.01338131]
[1747264731482,0.76435694,103530.0,103520.0,1.01338131]
[1747264731781,0.59435694,103530.0,103520.0,1.01338131]
[1747264733380,0.74172798,103530.0,103520.0,1.01338131]
[1747264733781,0.94172798,103530.0,103520.0,1.01338131]
[1747264734280,0.60172798,103530.0,103520.0,1.01338131]
[1747264734482,0.65172798,103530.0,103520.0,1.01338131]
[1747264735382,0.65172798,103530.0,103520.0,0.88057606]
[1747264735584,0.92172798,103530.0,103520.0,1.01338131]
[1747264736179,0.60172798,103530.0,103520.0,1.01338131]
[1747264736373,0.66172798,103530.0,103520.0,0.88057606]
[1747264736574,0.91172798,103530.0,103520.0,0.51977606]
[1747264738485,0.91172798,103530.0,103520.0,0.88057606]
[1747264739081,0.91172798,103530.0,103520.0,1.01338131]
[1747264739277,0.62409558,103530.0,103520.0,1.06338131]
[1747264739484,0.31409558,103530.0,103520.0,1.06338131]
[1747264739687,0.50722798,103530.0,103520.0,1.06338131]
[1747264739879,0.31409558,103530.0,103520.0,1.06338131]
[1747264740375,0.31409558,103530.0,103520.0,1.19618656]
[1747264740589,0.31409558,103530.0,103520.0,1.29634131]
[1747264741388,0.30900921,103530.0,103520.0,1.29634131]
[1747264742191,0.30900921,103530.0,103520.0,2.79634131]
[1747264742590,0.30700921,103530.0,103520.0,2.79634131]
[1747264744894,1.39106371,103540.0,103530.0,0.1931324]
[1747264745094,1.40106371,103540.0,103530.0,0.94263765]
[1747264745594,1.40106371,103540.0,103530.0,0.90642742]
[1747264745799,1.40106371,103540.0,103530.0,1.03923267]
[1747264745986,1.40306371,103540.0,103530.0,1.03923267]
[1747264746595,1.73306371,103540.0,103530.0,1.03923267]
[1747264746998,1.76436371,103540.0,103530.0,1.03923267]
[1747264747190,1.76636371,103540.0,103530.0,1.03923267]
[1747264748093,1.59022521,103540.0,103530.0,1.08923267]
[1747264748293,1.01140921,103540.0,103530.0,1.22203792]
[1747264748989,1.01140921,103540.0,103530.0,1.08923267]
[1747264749392,0.98940921,103540.0,103530.0,1.22203792]
[1747264749697,0.84534853,103540.0,103530.0,1.22203792]
[1747264750002,0.84534853,103540.0,103530.0,1.45487792]
[1747264750497,0.84734853,103540.0,103530.0,1.45487792]
[1747264750703,0.84534853,103540.0,103530.0,1.45487792]
[1747264751599,0.16494853,103540.0,103530.0,1.45487792]
[1747264752102,0.16294853,103540.0,103530.0,1.45487792]
[1747264752697,0.31795173,103550.0,103540.0,0.1931137]
[1747264752903,0.31795173,103550.0,103540.0,1.03333895]
[1747264753290,0.31795173,103550.0,103540.0,1.29192464]
[1747264754290,0.31995173,103550.0,103540.0,1.29192464]
[1747264755101,0.31995173,103550.0,103540.0,1.30170192]
[1747264755501,0.27027182,103550.0,103540.0,1.30170192]
[1747264756304,0.27027182,103550.0,103540.0,1.31618083]
[1747264758808,0.04190681,103560.0,103550.0,0.1930951]
[1747264759007,0.04190681,103560.0,103550.0,1.1987656]
[1747264759309,0.04190681,103560.0,103550.0,2.8607656]
[1747264759499,0.04190681,103560.0,103550.0,2.95734196]
[1747264759694,0.04190681,103560.0,103550.0,2.69173146]
[1747264759903,0.002,103560.0,103550.0,2.82453671]
[1747264764810,0.77852525,103570.0,103560.0,0.1930764]
[1747264765006,0.16232525,103570.0,103560.0,1.03356165]
[1747264765397,0.09812525,103570.0,103560.0,1.26293394]
[1747264765598,0.0972,103580.0,103570.0,0.1930578]
[1747264765816,0.0972,103580.0,103570.0,0.83136305]
[1747264766218,0.0972,103580.0,103570.0,0.92791144]
[1747264767012,0.1002,103580.0,103570.0,0.92791144]
[1747264767206,0.2932391,103580.0,103570.0,0.92791144]
[1747264767411,0.1002,103580.0,103570.0,0.92791144]
[1747264767712,0.1032,103580.0,103570.0,0.92791144]
[1747264773118,0.2962391,103580.0,103570.0,0.79510619]
[1747264773319,0.1032,103580.0,103570.0,0.92791144]
[1747264774321,0.2962391,103580.0,103570.0,0.92791144]
[1747264775317,0.1032,103580.0,103570.0,0.92791144]
[1747264775820,0.2962391,103580.0,103570.0,0.87791144]
[1747264776009,0.2962391,103580.0,103570.0,0.28960619]
[1747264776207,0.4582391,103580.0,103570.0,0.28960619]
[1747264777217,0.46385981,103580.0,103570.0,0.28960619]
[1747264777406,0.95746506,103580.0,103570.0,0.09654839]
[1747264777613,0.95746506,103580.0,103570.0,0.28960619]
[1747264777808,1.18650506,103580.0,103570.0,0.28960619]
[1747264778920,1.22640585,103580.0,103570.0,0.28960619]
[1747264779120,1.22640585,103580.0,103570.0,0.09654839]
[1747264779418,1.32295385,103580.0,103570.0,0.28960619]
[1747264779625,1.32295385,103580.0,103570.0,0.09654839]
[1747264779815,1.57295385,103580.0,103570.0,0.09654839]
[1747264780016,0.1930578,103570.0,103560.0,0.3378625]
[1747264780221,0.2564578,103570.0,103560.0,0.3378625]
[1747264780427,0.2564578,103570.0,103560.0,0.43441089]
[1747264781116,0.4184578,103570.0,103560.0,0.43441089]
[1747264781322,0.4204578,103570.0,103560.0,0.43441089]
[1747264781511,0.4204578,103570.0,103560.0,0.46741089]
[1747264781715,0.4204578,103570.0,103560.0,0.60021614]
[1747264781916,0.6496178,103570.0,103560.0,0.60021614]
[1747264782221,0.6516178,103570.0,103560.0,0.60021614]
[1747264782417,0.6514578,103570.0,103560.0,0.60021614]
[1747264782716,0.4224578,103570.0,103560.0,0.60021614]
[1747264782923,0.4224578,103570.0,103560.0,0.96101614]
[1747264783217,0.46235859,103570.0,103560.0,0.96101614]
[1747264783827,0.46235859,103570.0,103560.0,0.46741089]
[1747264784626,1.14275859,103570.0,103560.0,0.46741089]
[1747264785818,1.2901324,103570.0,103560.0,0.46741089]
[1747264786125,0.6097324,103570.0,103560.0,0.82821089]
[1747264786424,0.6097324,103570.0,103560.0,0.46741089]
[1747264786627,0.6097324,103570.0,103560.0,0.49771089]
[1747264787723,0.6097324,103570.0,103560.0,0.46741089]
[1747264788513,0.46235859,103570.0,103560.0,0.46741089]
[1747264790525,0.4679793,103570.0,103560.0,0.46741089]
[1747264790824,0.4679793,103570.0,103560.0,0.63141614]
[1747264791008,0.4679793,103570.0,103560.0,0.66351614]
[1747264792423,0.4679793,103570.0,103560.0,0.53071089]
[1747264792729,0.59086056,103570.0,103560.0,0.53071089]
[1747264793823,0.59086056,103570.0,103560.0,0.46741089]
[1747264794927,0.59086056,103570.0,103560.0,0.49961089]
[1747264796332,0.42807851,103570.0,103560.0,0.49961089]
[1747264799837,0.55095977,103570.0,103560.0,0.49961089]
[1747264800427,0.35790197,103570.0,103560.0,1.04321614]
[1747264800626,0.29450197,103570.0,103560.0,1.04321614]
[1747264801327,0.13250197,103570.0,103560.0,1.04321614]
[1747264801729,0.32555977,103570.0,103560.0,1.04321614]
[1747264802131,0.32555977,103570.0,103560.0,0.91041089]
[1747264802328,0.32555977,103570.0,103560.0,1.04321614]
[1747264803833,0.17240068,103570.0,103560.0,1.04321614]
[1747264804017,0.17240068,103570.0,103560.0,1.40294139]
[1747264804333,0.17240068,103570.0,103560.0,1.56494139]
[1747264804734,0.16677997,103570.0,103560.0,1.56494139]
[1747264804926,0.16677997,103570.0,103560.0,1.79058139]
[1747264805126,0.16677997,103570.0,103560.0,3.29058139]
[1747264805637,0.17240068,103570.0,103560.0,3.29058139]
[1747264806738,0.16677997,103570.0,103560.0,3.29058139]
[1747264807141,0.004,103570.0,103560.0,3.15777614]
[1747264808239,0.004,103570.0,103560.0,2.99577614]
[1747264809638,0.00962071,103570.0,103560.0,2.99577614]
[1747264809835,0.00962071,103570.0,103560.0,3.12858139]
[1747264810344,0.00962071,103570.0,103560.0,3.29058139]
[1747264810729,0.004,103570.0,103560.0,3.29058139]
[1747264810927,0.07775648,103570.0,103560.0,3.29058139]
[1747264816045,0.07775648,103570.0,103560.0,3.02497089]
[1747264816235,0.07775648,103570.0,103560.0,3.15777614]
[1747264817240,0.07775648,103570.0,103560.0,2.99577614]
[1747264817549,0.07775648,103570.0,103560.0,2.99473614]
[1747264817841,0.08337719,103570.0,103560.0,2.99473614]
[1747264818025,0.08337719,103570.0,103560.0,3.12754139]
[1747264818445,0.08337719,103570.0,103560.0,2.99473614]
[1747264825237,0.18718126,103580.0,103560.0,3.03103429]
[1747264825449,0.14737381,103590.0,103580.0,0.1930391]
[1747264825641,0.14737381,103590.0,103580.0,1.18536435]
[1747264825854,0.14737381,103590.0,103580.0,1.24836435]
[1747264826049,0.14737381,103590.0,103580.0,2.84492206]
[1747264827246,0.14937381,103590.0,103580.0,2.84492206]
[1747264828246,0.15037381,103590.0,103580.0,2.84492206]
[1747264829544,0.003,103590.0,103580.0,2.84492206]
[1747264830247,0.0693,103590.0,103580.0,2.84492206]
[1747264835051,0.07492071,103590.0,103580.0,2.84492206]
[1747264836048,0.0693,103590.0,103580.0,2.84492206]
[1747264836249,0.0693,103590.0,103580.0,3.00692206]
[1747264837141,0.0693,103590.0,103580.0,3.01254277]
[1747264837752,0.0693,103590.0,103580.0,2.87973752]
[1747264837955,0.0693,103590.0,103580.0,3.01254277]
[1747264838949,0.0693,103590.0,103580.0,2.56382277]
[1747264839146,0.0998,103590.0,103580.0,2.84316206]
[1747264839349,0.0998,103590.0,103580.0,0.76880523]
[1747264840258,0.2618,103590.0,103580.0,0.81880523]
[1747264841256,0.26742071,103590.0,103580.0,0.81880523]
[1747264841447,0.26742071,103590.0,103580.0,0.76880523]
[1747264841654,0.46044121,103590.0,103580.0,0.68179681]
[1747264841864,0.46044121,103590.0,103580.0,0.76880523]
[1747264843058,0.54744963,103590.0,103580.0,0.32099681]
[1747264843263,0.26742071,103590.0,103580.0,0.76880523]
[1747264843558,0.26742071,103590.0,103580.0,0.81880523]
[1747264843749,0.23692071,103590.0,103580.0,0.93851365]
[1747264843949,0.23692071,103590.0,103580.0,0.85150523]
[1747264844160,0.07492071,103590.0,103580.0,0.85150523]
[1747264845265,0.23692071,103590.0,103580.0,0.85150523]
[1747264846260,0.07492071,103590.0,103580.0,0.85150523]
[1747264846960,0.07492071,103590.0,103580.0,0.76449681]
[1747264847158,0.42994121,103590.0,103580.0,0.71449681]
[1747264847362,0.23692071,103590.0,103580.0,0.76880523]
[1747264847667,0.23692071,103590.0,103580.0,0.80200523]
[1747264847668,0.42994121,103590.0,103580.0,0.80200523]
[1747264848054,0.23692071,103590.0,103580.0,0.80200523]
[1747264848465,0.42994121,103590.0,103580.0,0.80200523]
[1747264849267,0.42994121,103590.0,103580.0,0.84758612]
[1747264850065,0.23692071,103590.0,103580.0,0.84758612]
[1747264850454,0.42994121,103590.0,103580.0,0.84758612]
[1747264850764,0.52822112,103590.0,103580.0,0.84758612]
[1747264851953,0.33520062,103590.0,103580.0,0.84758612]
[1747264852559,0.33520062,103590.0,103580.0,0.89758612]
[1747264855166,0.52822112,103590.0,103580.0,0.89758612]
[1747264855369,0.33520062,103590.0,103580.0,0.89758612]
[1747264857582,0.43079512,103590.0,103580.0,0.92788612]
[1747264857777,0.43079512,103590.0,103580.0,0.87788612]
[1747264858179,0.62381562,103590.0,103580.0,0.68179681]
[1747264858776,0.62381562,103590.0,103580.0,0.32099681]
[1747264861383,1.33840493,103590.0,103580.0,0.12795771]
[1747264861580,1.33840493,103590.0,103580.0,0.28959681]
[1747264861978,1.36279561,103590.0,103580.0,0.28959681]
[1747264862382,1.00199561,103590.0,103580.0,0.09655771]
[1747264862592,0.1930391,103580.0,103570.0,0.7294289]
[1747264862789,0.064,103580.0,103570.0,0.86201821]
[1747264862980,0.064,103580.0,103570.0,1.03855728]
[1747264863179,0.226,103580.0,103570.0,1.03855728]
[1747264863380,0.4190391,103580.0,103570.0,0.85596797]
[1747264863577,0.4190391,103580.0,103570.0,0.98855728]
[1747264863782,0.4210391,103580.0,103570.0,0.98855728]
[1747264863981,0.4210391,103580.0,103570.0,0.85596797]
[1747264864180,0.4210391,103580.0,103570.0,0.39864227]
[1747264864381,0.4210391,103580.0,103570.0,0.50123158]
[1747264864587,0.4210391,103580.0,103570.0,0.53423158]
[1747264865295,0.4210391,103580.0,103570.0,0.89503158]
[1747264865591,0.68883566,103580.0,103570.0,0.53423158]
[1747264865786,0.68683566,103580.0,103570.0,0.53423158]
[1747264865985,0.68683566,103580.0,103570.0,0.89503158]
[1747264867789,0.71823566,103580.0,103570.0,0.92523158]
[1747264869794,0.52519656,103580.0,103570.0,0.92523158]
[1747264869986,0.71823566,103580.0,103570.0,0.92523158]
[1747264870488,0.61988696,103580.0,103570.0,0.92523158]
[1747264873896,0.61988696,103580.0,103570.0,0.87966499]
[1747264876698,0.61988696,103580.0,103570.0,0.52113907]
[1747264876999,1.06770968,103580.0,103570.0,0.32039687]
[1747264878698,1.74810968,103580.0,103570.0,0.2238578]
[1747264879006,1.96938968,103580.0,103570.0,0.2238578]
[1747264879693,2.06593768,103580.0,103570.0,0.2238578]
[1747264879899,0.1930578,103570.0,103560.0,0.01349948]
[1747264880098,0.59870052,103570.0,103560.0,0.23767588]
[1747264881004,0.95950052,103570.0,103560.0,0.23767588]
[1747264881206,1.12150052,103570.0,103560.0,0.23767588]
[1747264881604,1.13093564,103570.0,103560.0,0.23867588]
[1747264881902,1.13093564,103570.0,103560.0,0.23967588]
[1747264882200,1.13093564,103570.0,103560.0,0.04659948]
[1747264882404,1.22749164,103570.0,103560.0,0.002]
[1747264883700,1.5376926,103570.0,103560.0,0.002]
[1747264884595,1.5396926,103570.0,103560.0,0.001]
[1747264884893,0.1930764,103560.0,103550.0,0.27589404]
[1747264885093,1.08867912,103560.0,103550.0,0.22762034]
[1747264885392,1.27226984,103560.0,103550.0,0.09848905]
[1747264885589,1.27226984,103560.0,103550.0,0.00193134]
[1747264885894,1.18624712,103560.0,103550.0,0.03373134]
[1747264886710,1.18624712,103560.0,103550.0,0.00193134]
[1747264886894,1.27326984,103560.0,103550.0,0.00193134]
[1747264887296,1.23193511,103560.0,103550.0,0.00193134]
[1747264887694,1.26263511,103560.0,103550.0,0.03353134]
[1747264887899,1.57683607,103560.0,103550.0,0.03353134]
[1747264890408,2.04743748,103560.0,103530.0,0.2414008]
[1747264890604,1.14815831,103550.0,103540.0,0.2246137]
[1747264890817,0.7029254,103550.0,103540.0,0.2246137]
[1747264891013,1.0637254,103550.0,103540.0,0.2551137]
[1747264891198,0.8649254,103550.0,103540.0,0.2551137]
[1747264891605,1.2257254,103550.0,103540.0,0.2551137]
[1747264893013,1.2267254,103550.0,103540.0,0.2551137]
[1747264894819,1.24094331,103550.0,103540.0,0.2551137]
[1747264895416,1.24094331,103550.0,103540.0,0.2884137]
[1747264895606,1.92134331,103550.0,103540.0,0.2884137]
[1747264896015,1.92696402,103550.0,103540.0,0.2884137]
[1747264896315,2.02502985,103550.0,103540.0,0.062]
[1747264896505,2.02502985,103550.0,103540.0,0.2551137]
[1747264897408,1.66422985,103550.0,103540.0,0.2551137]
[1747264897607,2.02502985,103550.0,103540.0,0.0315]
[1747264897810,2.15774056,103550.0,103540.0,0.0315]
[1747264898115,0.1931324,103530.0,103520.0,0.6505232]
[1747264898310,0.1931324,103530.0,103520.0,0.7138232]
[1747264898512,0.4765524,103530.0,103520.0,0.7138232]
[1747264898712,0.60926311,103530.0,103520.0,0.45739502]
[1747264899112,0.77126311,103530.0,103520.0,0.48919502]
[1747264899311,0.77126311,103530.0,103520.0,0.52069502]
[1747264899516,0.6692524,103530.0,103520.0,0.74464602]
[1747264900014,0.6692524,103530.0,103520.0,0.74764602]
[1747264900208,0.6692524,103530.0,103520.0,0.74964602]
[1747264901305,0.76726775,103530.0,103520.0,0.74964602]
[1747264901828,0.76726775,103530.0,103520.0,0.55649502]
[1747264902212,0.89997846,103530.0,103520.0,0.3966]
[1747264902818,0.89997846,103530.0,103520.0,0.4273]
[1747264903114,0.76726775,103530.0,103520.0,0.4273]
[1747264903618,0.76726775,103530.0,103520.0,0.620451]
[1747264903820,0.54674775,103530.0,103520.0,0.620451]
[1747264904012,0.98822775,103530.0,103520.0,0.620451]
[1747264904523,0.98822775,103530.0,103520.0,0.4273]
[1747264904724,1.66862775,103530.0,103520.0,0.4273]
[1747264904922,1.66862775,103530.0,103520.0,0.0665]
[1747264906919,1.66862775,103530.0,103520.0,0.259651]
[1747264907217,1.66862775,103530.0,103520.0,0.0665]
[1747264907411,1.66814775,103530.0,103520.0,0.0665]
[1747264907827,1.22714775,103530.0,103520.0,0.259651]
[1747264908122,1.66810775,103530.0,103520.0,0.292751]
[1747264909220,1.79104362,103530.0,103520.0,0.0996]
[1747264910218,1.87815817,103530.0,103520.0,0.0996]
[1747264910426,1.79104362,103530.0,103520.0,0.0996]
[1747264910613,1.87815817,103530.0,103520.0,0.0996]
[1747264911530,1.88377888,103530.0,103520.0,0.0996]
[1747264912138,0.193151,103520.0,103510.0,0.36418114]
[1747264912341,0.37696555,103520.0,103510.0,0.44598114]
[1747264913134,0.53896555,103520.0,103510.0,0.44598114]
[1747264913335,0.58462685,103520.0,103510.0,0.44998114]
[1747264913638,0.58462685,103520.0,103510.0,0.45398114]
[1747264913834,0.58462685,103520.0,103510.0,0.45253209]
[1747264914038,1.26502685,103520.0,103510.0,0.42073209]
[1747264915445,1.26502685,103520.0,103510.0,0.45203209]
[1747264916035,1.132251,103520.0,103510.0,0.45203209]
[1747264916236,0.8424,103520.0,103510.0,0.80957764]
[1747264916438,1.19840605,103520.0,103510.0,0.90618199]
[1747264916637,1.63752605,103520.0,103510.0,0.90618199]
[1747264916837,1.66962605,103520.0,103510.0,0.90618199]
[1747264917239,1.50762605,103520.0,103510.0,0.90618199]
[1747264918146,1.66962605,103520.0,103510.0,0.90618199]
[1747264920048,1.66962605,103520.0,103510.0,0.58023644]
[1747264920247,1.63727686,103520.0,103510.0,0.77340614]
[1747264920447,1.63727686,103520.0,103510.0,0.58023644]
[1747264920840,1.22815686,103520.0,103510.0,0.48363209]
[1747264921047,1.66719686,103520.0,103510.0,0.48363209]
[1747264921444,1.79997271,103520.0,103510.0,0.42073209]
[1747264921649,1.89657671,103520.0,103510.0,0.42073209]
[1747264922350,2.25737671,103520.0,103510.0,0.00993209]
[1747264922745,1.89657671,103520.0,103510.0,0.00993209]
[1747264922952,2.25737671,103520.0,103510.0,0.00993209]
[1747264924455,2.30654466,103520.0,103510.0,0.00993209]
[1747264924755,2.20994066,103520.0,103510.0,0.00993209]
[1747264925457,2.30654466,103520.0,103510.0,9e-08]
[1747264925753,0.1931884,103500.0,103490.0,0.00096623]
[1747264925939,0.193207,103490.0,103480.0,0.0615]
[1747264926141,0.78338285,103490.0,103480.0,0.0615]
[1747264927143,0.94538285,103490.0,103480.0,0.0615]
[1747264927548,0.94538285,103490.0,103480.0,0.0302]
[1747264927850,0.1932257,103480.0,103470.0,0.61797723]
[1747264928053,0.39616746,103490.0,103480.0,0.1932257]
[1747264928238,0.21952,103500.0,103490.0,0.193207]
[1747264928438,0.28620581,103500.0,103490.0,0.78278285]
[1747264928653,0.47939421,103500.0,103490.0,0.74663936]
[1747264928856,0.61217006,103500.0,103490.0,0.74663936]
[1747264929055,0.51249421,103500.0,103490.0,0.74663936]
[1747264929655,0.51249421,103500.0,103490.0,0.74863936]
[1747264930456,1.01527006,103500.0,103490.0,0.55543236]
[1747264930651,1.27459421,103500.0,103490.0,0.291207]
[1747264930850,1.75966591,103500.0,103490.0,0.0351]
[1747264931056,1.75966591,103500.0,103490.0,0.002]
[1747264931355,1.92166591,103500.0,103490.0,0.002]
[1747264931553,2.96286591,103500.0,103490.0,0.002]
[1747264931956,2.77484199,103500.0,103490.0,0.002]
[1747264933150,2.87146599,103500.0,103490.0,0.002]
[1747264933352,1.69218599,103500.0,103490.0,0.916807]
[1747264933553,0.96001029,103500.0,103490.0,0.916807]
[1747264933754,1.03054614,103500.0,103490.0,0.978807]
[1747264933945,1.47290614,103500.0,103490.0,0.290307]
[1747264934145,1.31090614,103500.0,103490.0,0.0971]
[1747264934357,1.80448199,103500.0,103490.0,0.0971]
[1747264934558,1.80448199,103500.0,103490.0,0.064]
[1747264934748,1.80448199,103500.0,103490.0,0.0322]
[1747264935149,1.96648199,103500.0,103490.0,0.0322]
[1747264935653,1.60568199,103500.0,103490.0,0.0322]
[1747264935854,1.96648199,103500.0,103490.0,0.0322]
[1747264936258,1.97623218,103500.0,103490.0,0.0322]
[1747264936459,1.97623218,103500.0,103490.0,0.002]
[1747264936965,0.193207,103490.0,103480.0,0.0331]
[1747264937154,1.32338285,103490.0,103480.0,0.0331]
[1747264937354,0.96258285,103490.0,103480.0,0.0331]
[1747264937554,2.00378285,103490.0,103480.0,0.0331]
[1747264938371,2.00378285,103490.0,103480.0,0.0411]
[1747264938660,1.86582285,103490.0,103480.0,0.5951257]
[1747264938850,1.07978149,103490.0,103480.0,0.82453391]
[1747264939166,0.88814849,103490.0,103480.0,0.77365806]
[1747264939465,1.02092434,103490.0,103480.0,0.72365806]
[1747264939757,1.96128434,103490.0,103480.0,0.36285806]
[1747264939964,1.99748519,103490.0,103450.0,0.603354]
[1747264940167,0.73513535,103470.0,103460.0,0.0308]
[1747264940368,0.193263,103460.0,103450.0,0.0317666]
[1747264940553,1.33931885,103460.0,103450.0,0.0625666]
[1747264940757,1.33931885,103460.0,103450.0,0.07041872]
[1747264940962,0.97851885,103460.0,103450.0,0.07041872]
[1747264941161,1.50131885,103460.0,103450.0,0.10111872]
[1747264941357,1.72079885,103460.0,103450.0,0.10411872]